bitfinex/quotes_SOLUSD_20250922
["timestamp","ask_amount","ask_price","bid_price","bid_amount"]
[1758572595787,0.43,217.91,217.85,26.0]
[1758572596518,0.43,217.9,217.85,26.0]
[1758572596684,0.43,217.89,217.85,30.59021631]
[1758572596999,4.58862937,217.93,217.85,30.59021631]
[1758572597382,0.43,217.92,217.85,30.59021631]
[1758572597586,0.43,217.92,217.85,31.28021631]
[1758572598107,4.58887222,217.92,217.85,26.69]
[1758572598311,0.43,217.91,217.85,26.0]
[1758572598513,0.43,217.91,217.85,30.59030443]
[1758572599006,0.43,217.91,217.85,26.0]
[1758572599199,0.43,217.9,217.85,62.0]
[1758572599511,5.01887222,217.92,217.85,67.28026312]
[1758572600211,0.43,217.92,217.86,0.69]
[1758572602999,0.43,217.93,217.87,4.58989305]
[1758572603309,134.2,217.94,217.88,13.59559401]
[1758572603501,134.2,217.94,217.88,52.5029918]
[1758572603701,134.2,217.94,217.89,0.69]
[1758572604214,0.1,218.0,217.92,2.90739779]
[1758572604414,0.43,217.99,217.92,2.90739779]
[1758572605008,4.68720435,218.0,217.9,26.0]
[1758572605009,3.33739779,217.98,217.9,26.0]
[1758572605206,3.33739779,217.98,217.88,0.69]
[1758572605207,0.43,217.97,217.88,41.25965014]
[1758572605397,0.43,217.96,217.87,26.0]
[1758572605595,0.43,217.95,217.87,0.69]
[1758572606911,5.01835407,217.95,217.87,5.27989093]
[1758572607111,5.01835407,217.95,217.88,0.69]
[1758572607295,4.58835407,217.95,217.88,0.69]
[1758572607500,3.33739779,217.94,217.85,0.7]
[1758572607797,2.90739779,217.94,217.86,0.7]
[1758572608000,3.33739779,217.96,217.86,0.7]
[1758572608200,39.31739779,217.96,217.86,0.7]
[1758572608807,5.0183655,217.95,217.87,4.58989305]
[1758572609015,5.0183655,217.95,217.88,0.7]
[1758572610226,0.43,217.95,217.88,0.7]
[1758572611027,0.43,217.95,217.89,4.58947175]
[1758572611332,0.43,217.95,217.89,5.28947175]
[1758572611500,7.49509829,217.98,217.9,0.7]
[1758572611824,1.962799,217.97,217.9,0.7]
[1758572612124,40.5677005,217.98,217.9,0.7]
[1758572612520,35.98,217.98,217.9,0.7]
[1758572613306,40.56759452,217.98,217.91,4.58905052]
[1758572613600,40.99759452,217.98,217.91,5.28905052]
[1758572614118,0.1,218.0,217.91,16.06167683]
[1758572614426,2.90739779,217.98,217.92,0.7]
[1758572615223,2.90739779,217.98,217.93,4.58862937]
[1758572615410,2.90739779,217.98,217.94,0.7]
[1758572616138,2.90739779,217.99,217.94,0.7]
[1758572616515,2.90739779,217.99,217.95,0.7]
[1758572617014,0.1,218.0,217.96,0.7]
[1758572617214,0.1,218.0,217.97,4.58778731]
[1758572617415,0.1,218.0,217.98,0.7]
[1758572618338,0.1,218.0,217.99,0.7]
[1758572619331,0.1,218.0,217.99,5.28736639]
[1758572620321,0.1,218.0,217.99,0.7]
[1758572620643,0.1,218.0,217.98,30.5875503]
[1758572621151,0.1,218.0,217.98,31.2875503]
[1758572621455,0.1,218.0,217.99,0.7]
[1758572621642,0.1,218.0,217.98,30.5875503]
[1758572622118,0.1,218.0,217.98,31.2875503]
[1758572622840,2.40299378,217.99,217.94,4.58841883]
[1758572623141,1.85321697,217.97,217.95,26.7]
[1758572623724,1.85321697,217.97,217.95,31.28820594]
[1758572624124,1.85321697,217.99,217.95,31.28820594]
[1758572624346,1.97529987,217.98,217.95,31.28820594]
[1758572624645,1.85321697,217.99,217.95,31.28820594]
[1758572624851,1.97521332,217.98,217.95,31.28820594]
[1758572625150,1.85321697,217.99,217.95,31.28820594]
[1758572625521,3.82835242,217.98,217.94,26.0]
[1758572625723,1.85321697,217.98,217.94,26.7]
[1758572627223,1.85321697,217.98,217.94,44.78073852]
[1758572627545,1.85321697,217.98,217.95,0.7]
[1758572627931,1.85321697,217.98,217.94,44.08073852]
[1758572628428,1.85321697,217.98,217.94,44.78073852]
[1758572629950,1.85321697,217.98,217.95,0.7]
[1758572630836,1.85321697,217.98,217.94,39.49247755]
[1758572631456,1.85321697,217.98,217.94,44.0808713]
[1758572631748,1.85321697,217.98,217.95,0.7]
[1758572632749,1.85321697,217.96,217.79,50.54746631]
[1758572632958,1.85321697,217.92,217.88,0.7]
[1758572633126,1.85321697,217.94,217.89,26.0]
[1758572633330,1.85321697,217.96,217.9,0.7]
[1758572633550,1.85321697,217.99,217.91,13.59559401]
[1758572633733,1.98010495,217.98,217.92,0.7]
[1758572634447,1.85321697,217.99,217.92,0.7]
[1758572634632,1.98085024,217.98,217.92,0.7]
[1758572634950,1.98085024,217.98,217.93,4.58862937]
[1758572635139,1.98085024,217.98,217.94,0.7]
[1758572635443,1.85321697,217.99,217.95,0.7]
[1758572636052,1.85321697,217.99,217.95,5.2880078]
[1758572637853,1.85321697,217.99,217.96,0.72]
[1758572638339,1.85321697,217.99,217.95,4.5880078]
[1758572638539,1.85321697,217.99,217.95,5.3080078]
[1758572639234,1.85321697,217.99,217.96,0.72]
[1758572640747,1.85321697,217.99,217.97,0.72]
[1758572640943,1.85321697,217.99,217.94,12.1908104]
[1758572641253,1.85321697,217.99,217.95,0.72]
[1758572641441,2.28321697,217.99,217.94,11.4708104]
[1758572641643,1.85321697,217.99,217.94,11.4708104]
[1758572641844,1.85321697,217.99,217.95,0.72]
[1758572643640,1.85321697,217.99,217.95,5.30810269]
[1758572644244,0.1,218.0,217.93,4.58847684]
[1758572644245,1.85321697,217.97,217.93,4.58847684]
[1758572644441,1.85321697,217.97,217.94,0.72]
[1758572644642,1.85321697,217.97,217.93,4.58847684]
[1758572644956,1.85321697,217.97,217.95,0.72]
[1758572645754,6.87107959,217.97,217.92,0.72]
[1758572645958,1.85321697,217.93,217.9,26.0]
[1758572646150,1.85321697,217.93,217.91,0.72]
[1758572647234,1.85321697,217.93,217.9,26.0]
[1758572647435,1.85321697,217.91,217.88,13.98832928]
[1758572647676,1.85321697,217.91,217.87,5.30969454]
[1758572647677,1.85321697,217.89,217.87,4.58969454]
[1758572647837,1.85321697,217.89,217.87,5.30969454]
[1758572648160,1.85321697,217.89,217.88,0.72]
[1758572648346,1.85321697,217.89,217.88,14.37466384]
[1758572648546,1.85321697,217.89,217.88,0.72]
[1758572649265,1.85321697,217.89,217.87,4.58969454]
[1758572649559,1.85321697,217.89,217.84,26.0]
[1758572649763,1.85321697,217.89,217.85,0.72]
[1758572649935,1.85321697,217.89,217.84,26.0]
[1758572650134,1.85321697,217.89,217.86,0.72]
[1758572650543,1.85321697,217.87,217.86,13.57185127]
[1758572650780,1.85321697,217.87,217.83,26.0]
[1758572651058,0.43,217.89,217.83,30.5906892]
[1758572651258,4.58926211,217.9,217.84,0.72]
[1758572651569,1.85321697,217.85,217.83,30.5906892]
[1758572651747,1.85321697,217.85,217.83,31.3106892]
[1758572652268,1.85321697,217.85,217.81,0.72]
[1758572652446,0.43,217.88,217.81,0.72]
[1758572652447,1.85321697,217.82,217.81,0.72]
[1758572652966,1.85321697,217.82,217.81,14.16677103]
[1758572653467,1.85321697,217.82,217.81,18.75792846]
[1758572653844,1.85321697,217.82,217.81,13.44677103]
[1758572654167,1.85321697,217.82,217.77,0.72]
[1758572654344,1.85321697,217.79,217.77,26.0]
[1758572654544,1.85321697,217.79,217.77,0.72]
[1758572655656,1.85321697,217.79,217.78,0.72]
[1758572655850,1.85321697,217.79,217.78,14.49673945]
[1758572656047,1.85321697,217.84,217.78,14.49673945]
[1758572656269,1.85321697,217.84,217.79,0.66]
[1758572657163,1.85321697,217.84,217.8,4.59136822]
[1758572657472,1.85321697,217.84,217.81,0.66]
[1758572657867,1.85321697,217.84,217.82,0.66]
[1758572658048,1.85321697,217.84,217.8,16.06978878]
[1758572658377,1.85321697,217.86,217.81,0.66]
[1758572658675,1.85321697,217.86,217.82,4.59094665]
[1758572658866,1.85321697,217.86,217.83,0.66]
[1758572659750,35.92,217.91,217.84,0.66]
[1758572659751,1.85321697,217.87,217.84,0.66]
[1758572660449,1.85321697,217.87,217.85,0.66]
[1758572660667,1.85321697,217.87,217.86,0.66]
[1758572661169,136.05321697,217.89,217.86,0.66]
[1758572661777,136.05321697,217.89,217.86,5.24991482]
[1758572662157,136.05321697,217.89,217.87,0.66]
[1758572662459,134.2,217.89,217.88,0.66]
[1758572662664,1.85321697,217.91,217.88,0.66]
[1758572663177,1.85321697,217.91,217.86,5.24991482]
[1758572663376,1.85321697,217.91,217.87,0.66]
[1758572663667,0.43,217.9,217.83,0.66]
[1758572663872,1.85321697,217.87,217.84,4.59052515]
[1758572664174,1.85321697,217.87,217.81,30.59110387]
[1758572664372,1.85321697,217.85,217.81,5.25110387]
[1758572664566,1.85321697,217.83,217.78,13.7120628]
[1758572664762,16.06241626,217.9,217.79,0.66]
[1758572664763,1.85321697,217.8,217.79,0.66]
[1758572665855,1.85321697,217.82,217.8,4.59136822]
[1758572666570,1.85321697,217.82,217.79,0.66]
[1758572666966,1.85321697,217.82,217.79,5.25156147]
[1758572667265,1.85321697,217.82,217.79,0.66]
[1758572667465,1.85321697,217.82,217.78,14.04630772]
[1758572667676,1.85321697,217.79,217.78,5.30178987]
[1758572667883,1.85321697,217.79,217.78,4.59178987]
[1758572668051,1.85321697,217.79,217.78,0.71]
[1758572668247,1.85321697,217.79,217.76,31.30200344]
[1758572668495,1.85321697,217.79,217.74,0.71]
[1758572668774,1.85321697,217.75,217.74,0.71]
[1758572668986,1.85321697,217.75,217.73,4.59279196]
[1758572669175,1.85321697,217.75,217.72,0.71]
[1758572669478,1.85321697,217.75,217.7,0.71]
[1758572669662,1.85321697,217.75,217.67,11.48497225]
[1758572669663,1.85321697,217.75,217.71,0.71]
[1758572670378,1.85321697,217.75,217.71,14.79456717]
[1758572671065,1.85321697,217.75,217.72,0.71]
[1758572671269,1.85321697,217.75,217.71,18.67781172]
[1758572671566,1.85321697,217.75,217.71,19.38781172]
[1758572672274,1.85321697,217.75,217.72,0.71]
[1758572672581,1.85321697,217.75,217.73,0.71]
[1758572673076,1.85321697,217.8,217.74,26.71]
[1758572673250,1.85321697,217.8,217.75,26.71]
[1758572673452,1.85321697,217.8,217.76,0.71]
[1758572673874,1.85321697,217.82,217.76,0.71]
[1758572674079,40.94008879,217.87,217.76,0.71]
[1758572674281,1.85321697,217.79,217.77,4.59200073]
[1758572674667,1.85321697,217.79,217.77,5.30200073]
[1758572674979,1.85321697,217.79,217.78,0.71]
[1758572675385,1.85321697,217.79,217.78,5.30178987]
[1758572675575,1.85321697,217.79,217.76,4.59202321]
[1758572675882,1.85321697,217.79,217.77,0.71]
[1758572676178,1.85321697,217.79,217.76,4.59202321]
[1758572676385,1.85321697,217.79,217.77,0.71]
[1758572676580,1.85321697,217.79,217.78,0.71]
[1758572677486,1.85321697,217.79,217.78,5.30178987]
[1758572677985,134.2,217.83,217.78,16.78126456]
[1758572678286,134.2,217.83,217.79,0.71]
[1758572678287,136.05321697,217.83,217.79,0.71]
[1758572678658,1.85321697,217.8,217.78,4.59178987]
[1758572678866,1.85321697,217.8,217.78,5.30178987]
[1758572679064,1.85321697,217.82,217.78,5.30178987]
[1758572679265,1.85321697,217.82,217.78,0.71]
[1758572679478,1.85321697,217.82,217.79,0.71]
[1758572679677,1.85321697,217.82,217.76,5.3022116]
[1758572679885,1.85321697,217.82,217.77,0.71]
[1758572680078,1.85321697,217.82,217.78,0.71]
[1758572680884,1.85321697,217.82,217.78,5.30175477]
[1758572681183,5.02054123,217.84,217.79,0.71]
[1758572681184,134.2,217.81,217.79,0.71]
[1758572681381,134.2,217.81,217.8,0.71]
[1758572683879,134.2,217.81,217.78,0.71]
[1758572686163,134.2,217.81,217.78,5.30160143]
[1758572686369,134.2,217.81,217.78,4.59160143]
[1758572686684,134.2,217.81,217.78,5.30160143]
[1758572688497,134.2,217.81,217.78,4.59160143]
[1758572688880,134.2,217.81,217.78,5.30160143]
[1758572689406,134.2,217.81,217.79,0.71]
[1758572690674,134.2,217.81,217.8,4.59136822]
[1758572691270,134.2,217.81,217.8,5.30136822]
[1758572691589,134.2,217.81,217.8,4.59136822]
[1758572692093,134.63,217.81,217.76,4.5922116]
[1758572692388,2.90067882,217.8,217.76,4.5922116]
[1758572692692,2.90067882,217.8,217.78,4.59178987]
[1758572692892,134.2,217.81,217.78,4.59178987]
[1758572695394,38.82067882,217.82,217.73,39.59559401]
[1758572695395,134.63,217.8,217.73,26.71]
[1758572695700,170.55,217.8,217.73,26.71]
[1758572695872,173.45067882,217.8,217.73,26.71]
[1758572696998,173.45067882,217.8,217.74,4.59248261]
[1758572697495,134.2,217.8,217.75,0.69]
[1758572697675,170.12,217.8,217.75,0.69]
[1758572697874,134.2,217.8,217.75,0.69]
[1758572698293,35.92,217.79,217.75,0.69]
[1758572698500,36.35,217.79,217.73,26.0]
[1758572699096,134.2,217.78,217.73,26.69]
[1758572699783,134.2,217.78,217.73,30.59277098]
[1758572700094,134.2,217.78,217.74,0.69]
[1758572701304,134.2,217.78,217.73,42.07488185]
[1758572701512,134.2,217.78,217.75,0.69]
[1758572702112,134.2,217.78,217.73,26.0]
[1758572702405,0.43,217.77,217.73,26.0]
[1758572702582,36.33,217.77,217.73,26.0]
[1758572703082,134.2,217.78,217.74,0.69]
[1758572703404,134.2,217.78,217.75,0.69]
[1758572703588,134.2,217.78,217.76,0.69]
[1758572703993,134.2,217.78,217.77,0.69]
[1758572704303,134.2,217.78,217.74,11.48158354]
[1758572704503,134.2,217.78,217.75,0.69]
[1758572704695,134.2,217.78,217.76,0.69]
[1758572705388,134.2,217.78,217.77,4.59200073]
[1758572706005,137.10067882,217.84,217.77,16.76200256]
[1758572706209,137.10067882,217.84,217.78,0.69]
[1758572706210,5.07230199,217.83,217.78,0.69]
[1758572706417,2.41522558,217.82,217.77,16.07200256]
[1758572706590,134.2,217.84,217.78,0.69]
[1758572707402,134.2,217.84,217.79,4.59157904]
[1758572707610,134.2,217.84,217.8,0.69]
[1758572707808,134.2,217.84,217.81,0.69]
[1758572707987,2.90067882,217.87,217.81,0.69]
[1758572709401,2.90067882,217.87,217.82,4.59094665]
[1758572709601,2.90067882,217.87,217.82,5.28094665]
[1758572710113,2.90067882,217.85,217.8,4.59136822]
[1758572710289,2.90067882,217.83,217.8,4.59136822]
[1758572711416,2.90067882,217.83,217.77,11.48000183]
[1758572711597,2.90067882,217.83,217.78,0.69]
[1758572712196,2.90067882,217.83,217.79,0.69]
[1758572712815,2.90067882,217.83,217.8,4.59136822]
[1758572713208,38.80067882,217.85,217.8,4.59136822]
[1758572713404,39.23067882,217.85,217.8,4.59136822]
[1758572713798,38.80067882,217.85,217.8,4.59136822]
[1758572714006,2.90067882,217.85,217.8,5.28136822]
[1758572714206,38.80067882,217.85,217.8,5.28136822]
[1758572714398,2.90067882,217.85,217.8,5.28136822]
[1758572714705,2.90067882,217.85,217.81,0.69]
[1758572715015,2.90067882,217.85,217.82,4.59094665]
[1758572715314,0.43,217.84,217.76,37.48022934]
[1758572715511,2.90067882,217.82,217.77,4.59200073]
[1758572715699,3.33067882,217.82,217.77,4.59200073]
[1758572716100,0.43,217.81,217.76,30.59220621]
[1758572716312,0.43,217.81,217.76,31.28220621]
[1758572717713,2.90067882,217.82,217.77,0.69]
[1758572717891,2.90067882,217.82,217.78,0.69]
[1758572718805,2.90067882,217.82,217.78,5.28162313]
[1758572720096,137.10067882,217.84,217.79,0.69]
[1758572720299,1.98521293,217.83,217.8,0.69]
[1758572721104,1.98521293,217.83,217.8,5.2811663]
[1758572722522,137.10067882,217.84,217.8,5.2811663]
[1758572723094,137.53067882,217.84,217.77,26.69]
[1758572723306,1.98454219,217.83,217.77,26.0]
[1758572723603,137.53067882,217.84,217.78,0.69]
[1758572723817,1.98421479,217.83,217.78,0.69]
[1758572724014,1.98421479,217.83,217.77,26.0]
[1758572724222,137.53067882,217.84,217.79,4.59157904]
[1758572724415,1.98382153,217.83,217.79,5.28157904]
[1758572724617,137.10067882,217.84,217.79,5.28157904]
[1758572725727,134.2,217.83,217.79,5.28157904]
[1758572729328,134.2,217.83,217.79,4.59157904]
[1758572729636,134.63,217.83,217.79,4.59157904]
[1758572730028,170.51,217.83,217.79,4.59157904]
[1758572730329,170.51,217.83,217.78,4.59178987]
[1758572730706,170.51,217.83,217.78,5.31178987]
[1758572731337,170.08,217.83,217.78,5.31178987]
[1758572731637,170.08,217.83,217.79,0.72]
[1758572731832,134.2,217.82,217.79,5.31147231]
[1758572735348,134.2,217.82,217.8,0.72]
[1758572736641,134.2,217.82,217.78,51.95126456]
[1758572736840,134.2,217.82,217.81,0.72]
[1758572737341,134.2,217.82,217.78,51.95126456]
[1758572737342,134.2,217.82,217.79,0.72]
[1758572737844,134.2,217.82,217.8,0.72]
[1758572738730,134.2,217.82,217.78,16.07126456]
[1758572738927,134.2,217.82,217.78,5.31178987]
[1758572740351,134.2,217.82,217.78,4.59178987]
[1758572740558,134.2,217.82,217.79,0.72]
[1758572740851,134.2,217.82,217.8,0.72]
[1758572741349,134.2,217.82,217.78,42.07126456]
[1758572741525,134.2,217.82,217.79,0.72]
[1758572742037,134.2,217.82,217.8,0.72]
[1758572742755,134.2,217.82,217.81,4.59115743]
[1758572744533,134.2,217.82,217.8,0.72]
[1758572745233,134.2,217.82,217.81,0.72]
[1758572747253,134.2,217.82,217.81,5.31115743]
[1758572754641,170.06,217.88,217.81,16.789051]
[1758572754954,134.2,217.88,217.84,26.0]
[1758572755152,134.2,217.88,217.85,0.72]
[1758572755539,134.2,217.88,217.85,28.5758909]
[1758572755735,134.63,217.95,217.86,0.72]
[1758572755942,5.07009102,217.94,217.9,26.0]
[1758572756141,1.9851742,217.93,217.91,4.58905052]
[1758572756368,0.43,217.92,217.89,4.58930528]
[1758572756872,1.98365117,217.93,217.89,4.58930528]
[1758572757167,0.43,217.91,217.87,4.58970457]
[1758572757972,0.43,217.93,217.87,4.58970457]
[1758572758268,1.98320444,217.92,217.87,4.58970457]
[1758572758440,1.98320444,217.91,217.87,5.28970457]
[1758572759358,0.43,217.92,217.87,5.28970457]
[1758572759538,1.9823856,217.91,217.87,5.28970457]
[1758572760349,0.43,217.92,217.87,5.28970457]
[1758572760758,2.41213025,217.92,217.87,5.28970457]
[1758572760962,0.43,217.92,217.87,5.28970457]
[1758572761463,2.41252253,217.92,217.87,5.28970457]
[1758572761648,0.43,217.92,217.87,5.28970457]
[1758572761958,0.43,217.91,217.87,4.58970457]
[1758572762140,1.98275538,217.92,217.87,5.28970457]
[1758572762340,1.98275538,217.92,217.85,4.59020241]
[1758572762341,0.43,217.91,217.85,4.59020241]
[1758572762546,136.61275538,217.9,217.85,4.59020241]
[1758572762749,0.43,217.89,217.85,4.59020241]
[1758572763154,134.2,217.9,217.85,5.29020241]
[1758572763346,134.2,217.9,217.86,0.7]
[1758572763549,134.2,217.9,217.85,4.59020241]
[1758572763858,0.43,217.89,217.84,26.0]
[1758572764065,0.43,217.88,217.84,26.0]
[1758572764638,1.98092311,217.89,217.84,26.7]
[1758572764840,2.41092311,217.89,217.84,26.7]
[1758572765040,1.98092311,217.89,217.85,0.7]
[1758572765241,134.2,217.9,217.86,0.7]
[1758572765442,134.2,217.9,217.84,26.0]
[1758572765745,1.97883606,217.89,217.84,26.7]
[1758572766062,1.97883606,217.89,217.85,0.7]
[1758572766266,134.2,217.9,217.85,0.7]
[1758572766451,0.43,217.89,217.84,26.0]
[1758572766761,0.43,217.89,217.84,31.29051333]
[1758572766762,2.40896852,217.89,217.84,31.29051333]
[1758572766967,4.58968239,217.88,217.78,11.47940592]
[1758572767154,1.8558909,217.84,217.73,13.59559401]
[1758572767359,37.6958909,217.84,217.76,26.7]
[1758572767567,1.8558909,217.8,217.73,5.29284434]
[1758572767765,35.84,217.79,217.73,5.29284434]
[1758572768070,1.8558909,217.77,217.73,5.29284434]
[1758572768249,0.43,217.83,217.74,0.7]
[1758572768448,1.8558909,217.83,217.74,0.7]
[1758572768762,1.8558909,217.81,217.74,0.7]
[1758572768964,6.4470844,217.81,217.74,5.29252334]
[1758572769142,1.8558909,217.81,217.74,5.29252334]
[1758572769349,1.8558909,217.81,217.75,0.7]
[1758572769859,6.44713042,217.81,217.74,4.59252334]
[1758572770057,0.43,217.8,217.74,4.59252334]
[1758572770752,1.8558909,217.79,217.74,4.59252334]
[1758572770948,1.8558909,217.79,217.74,5.29252334]
[1758572771355,37.6958909,217.81,217.75,0.7]
[1758572771556,35.84,217.81,217.75,0.7]
[1758572772759,35.84,217.81,217.73,26.0]
[1758572772760,1.8558909,217.79,217.73,26.0]
[1758572772958,1.8558909,217.77,217.73,26.0]
[1758572773757,1.8558909,217.77,217.73,26.7]
[1758572774462,1.8558909,217.78,217.74,0.7]
[1758572776057,1.8558909,217.8,217.75,0.68]
[1758572776388,1.8558909,217.84,217.75,0.68]
[1758572776559,1.8558909,217.84,217.76,26.0]
[1758572776759,1.8558909,217.84,217.77,0.68]
[1758572777684,1.8558909,217.84,217.78,4.59178987]
[1758572777879,1.8558909,217.84,217.79,0.68]
[1758572778055,35.84,217.85,217.79,0.68]
[1758572779870,35.84,217.85,217.8,16.06978878]
[1758572780054,35.84,217.85,217.81,0.68]
[1758572780371,35.84,217.85,217.82,0.68]
[1758572780557,35.84,217.85,217.83,0.68]
[1758572780758,1.8558909,217.88,217.83,0.68]
[1758572780981,1.97629662,217.87,217.83,0.68]
[1758572782876,1.97629662,217.87,217.84,4.59052515]
[1758572783069,35.84,217.89,217.84,5.27052515]
[1758572783372,1.97701135,217.88,217.85,0.68]
[1758572783566,1.8558909,217.9,217.85,0.68]
[1758572783768,1.9769868,217.89,217.85,0.68]
[1758572784280,1.9769868,217.89,217.84,4.59052515]
[1758572784490,1.9769868,217.89,217.84,5.27052515]
[1758572785395,1.9769868,217.89,217.82,11.47719109]
[1758572785572,1.9769868,217.89,217.85,0.68]
[1758572786391,1.9769868,217.89,217.85,5.27019614]
[1758572789183,2.2858909,217.9,217.85,5.27019614]
[1758572789384,1.8558909,217.9,217.86,0.66]
[1758572790376,1.8558909,217.9,217.82,11.47719109]
[1758572790581,35.82,217.93,217.87,0.66]
[1758572790779,1.97753629,217.92,217.87,0.66]
[1758572791079,35.82,217.93,217.87,0.66]
[1758572791470,35.82,217.93,217.88,16.06388837]
[1758572791674,35.82,217.93,217.89,0.66]
[1758572791870,4.58758213,217.98,217.89,0.66]
[1758572792183,37.79816551,217.97,217.89,0.66]
[1758572792387,1.97816551,217.96,217.89,0.66]
[1758572792569,1.97816551,217.96,217.91,26.0]
[1758572792778,35.82,217.97,217.92,0.66]
[1758572793086,0.1,218.0,217.92,26.66]
[1758572793279,0.1,218.0,217.93,0.66]
[1758572793476,2.07799388,218.0,217.94,16.0594659]
[1758572793667,0.1,218.0,217.95,0.66]
[1758572795784,0.1,218.0,217.96,42.05799228]
[1758572795995,0.1,218.0,217.97,0.66]
[1758572796167,0.1,218.0,217.97,14.64925283]
[1758572796367,0.1,218.0,217.98,0.66]
[1758572796578,0.1,218.0,217.99,0.66]
[1758572797889,0.1,218.0,217.99,5.24736639]
[1758572798765,0.1,218.0,217.99,4.58736639]
[1758572799073,0.1,218.0,217.98,4.58757684]
[1758572799496,0.1,218.0,217.99,0.66]
[1758572800998,0.1,218.0,217.99,5.24736639]
[1758572803482,0.1,218.0,217.99,4.58736639]
[1758572803769,0.1,218.0,217.99,5.24736639]
[1758572804371,0.1,218.0,217.97,13.97695086]
[1758572804577,0.1,218.0,217.97,30.58775759]
[1758572804774,0.1,218.0,217.97,31.24775759]
[1758572805371,0.1,218.0,217.97,44.69430014]
[1758572805575,0.1,218.0,217.98,0.66]
[1758572805802,0.1,218.0,217.97,44.03430014]
[1758572805991,0.1,218.0,217.98,0.66]
[1758572806802,0.1,218.0,217.98,5.24752068]
[1758572808007,0.1,218.0,217.98,4.58752068]
[1758572808311,0.1,218.0,217.98,5.24752068]
[1758572810295,0.1,218.0,217.97,13.44654255]
[1758572810494,0.1,218.0,217.96,4.58795275]
[1758572810784,0.1,218.0,217.97,0.66]
[1758572811881,0.53,218.0,217.96,4.58795275]
[1758572812085,0.1,218.0,217.95,4.58811498]
[1758572812388,0.1,218.0,217.96,5.247953]
[1758572813221,0.1,218.0,217.97,0.66]
[1758572813510,0.1,218.05,218.0,13.59559401]
[1758572813806,0.1,218.05,218.04,2.8953982]
[1758572814223,0.1,218.05,218.04,8.14171263]
[1758572815996,0.1,218.05,218.04,4.58631443]
[1758572816198,0.1,218.05,218.04,7.48171263]
[1758572816396,0.1,218.05,218.04,8.14171263]
[1758572817708,0.1,218.05,218.0,0.67]
[1758572817914,0.1,218.05,218.02,2.8953982]
[1758572820021,5.11613824,218.05,217.98,26.67]
[1758572820314,0.1,218.05,218.01,2.8953982]
[1758572820701,0.1,218.05,218.01,3.5653982]
[1758572820902,0.1,218.05,218.03,2.8953982]
[1758572821298,0.1,218.05,218.04,0.67]
[1758572822015,0.1,218.05,218.04,5.25631443]
[1758572823304,0.1,218.05,218.0,0.67]
[1758572823520,0.1,218.05,218.0,5.25711151]
[1758572823820,0.1,218.05,218.01,0.67]
[1758572824122,0.1,218.05,218.02,0.67]
[1758572824522,0.1,218.05,218.0,77.81500141]
[1758572824712,0.1,218.05,218.02,0.67]
[1758572825038,0.1,218.05,218.03,0.67]
[1758572825224,0.1,218.05,218.04,0.67]
[1758572825401,0.1,218.05,218.01,0.67]
[1758572825602,0.1,218.05,218.02,0.67]
[1758572827417,0.1,218.05,218.02,5.25658722]
[1758572827820,1.57467161,218.07,218.02,5.25658722]
[1758572828026,7.91087751,218.08,218.02,5.25658722]
[1758572828635,2.8953982,218.06,218.0,4.58705203]
[1758572828926,2.8953982,218.06,218.0,5.25705203]
[1758572829107,2.8953982,218.06,218.01,0.67]
[1758572829313,2.8953982,218.06,218.02,0.67]
[1758572829734,2.8953982,218.06,218.02,5.25669449]
[1758572829907,2.8953982,218.06,218.02,0.67]
[1758572831104,2.8953982,218.06,218.02,5.25673396]
[1758572832428,134.2,218.05,217.97,53.67992439]
[1758572832630,134.2,218.05,217.98,0.67]